fUSD/lending_fUSD_20250616
["ID","MTS","AMOUNT","RATE_DAILY","PERIOD"]
[366158569,1750091450290,-490.0,0.00016158,2]
[366158570,1750091450300,-490.0,0.00016158,2]
[366158571,1750091450309,-490.0,0.00016158,2]
[366158572,1750091450319,-490.0,0.00016158,2]
[366158573,1750091450328,-490.0,0.00016158,2]
[366158574,1750091450338,-822.49,0.00016158,2]
[366158575,1750091450348,-490.0,0.00016158,2]
[366158576,1750091450358,-545.84,0.00016158,2]
[366158577,1750091450367,-1015.76,0.00016158,2]
[366158578,1750091450377,-627.36,0.00016158,2]
[366158579,1750091450389,-490.0,0.00016158,2]
[366158580,1750091450399,-490.0,0.00016158,2]
[366158581,1750091450409,-490.0,0.00016158,2]
[366158582,1750091450418,-490.0,0.00016158,2]
[366158583,1750091450428,-490.0,0.00016158,2]
[366158584,1750091450438,-1976.34,0.00016158,2]
[366158585,1750091450447,-490.0,0.00016158,2]
[366158586,1750091450457,-783.88,0.00016158,2]
[366158587,1750091450467,-1248.4,0.00016158,2]
[366158588,1750091450479,-490.0,0.00016158,2]
[366158589,1750091450488,-530.5,0.00016158,2]
[366158590,1750091450498,-1177.91,0.00016158,2]
[366158591,1750091450508,-527.0,0.00016158,2]
[366158592,1750091450517,-764.61,0.00016158,2]
[366158593,1750091450527,-799.25,0.00016158,2]
[366158594,1750091450537,-2753.07,0.00016158,2]
[366158595,1750091450547,-490.0,0.00016158,2]
[366158596,1750091450561,-982.7,0.00016158,2]
[366158597,1750091450571,-875.31,0.00016158,2]
[366158598,1750091450582,-490.0,0.00016158,2]
[366158599,1750091450594,-789.1,0.00016158,2]
[366158600,1750091450603,-814.04,0.00016158,2]
[366158601,1750091450613,-775.73,0.00016158,2]
[366158602,1750091450623,-490.0,0.00016158,2]
[366158603,1750091450634,-490.0,0.00016158,2]
[366158604,1750091450644,-812.52,0.00016158,2]
[366158605,1750091450654,-552.79,0.00016158,2]
[366158606,1750091450664,-873.3,0.00016158,2]
[366158607,1750091450673,-680.95,0.00016158,2]
[366158608,1750091450684,-908.02,0.00016158,2]
[366158609,1750091450693,-924.8,0.00016158,2]
[366158610,1750091450703,-711.95,0.00016158,2]
[366158611,1750091450712,-634.49,0.00016158,2]
[366158612,1750091450723,-621.51,0.00016158,2]
[366158613,1750091450733,-490.0,0.00016158,2]
[366158614,1750091450743,-490.0,0.00016158,2]
[366158615,1750091450752,-1180.35,0.00016158,2]
[366158616,1750091450762,-1142.87,0.00016158,2]
[366158617,1750091450773,-1084.490312,0.00016159,2]
[366158618,1750091450783,-250.38722347,0.00016159,2]
[366158619,1750091450793,-490.0,0.00016159,2]
[366158620,1750091450803,-490.0,0.00016159,2]
[366158621,1750091450813,-492.36133831,0.00016159,2]
[366158622,1750091450823,-490.0,0.00016159,2]
[366158623,1750091450832,-490.0,0.00016159,2]
[366158624,1750091450842,-490.0,0.00016159,2]
[366158625,1750091450851,-490.54706714,0.00016159,2]
[366158626,1750091450862,-490.0,0.00016159,2]
[366158627,1750091450871,-491.49046999,0.00016159,2]
[366158628,1750091450882,-490.0,0.00016159,2]
[366158629,1750091450892,-490.0,0.00016159,2]
[366158630,1750091450902,-287.26344463,0.00016159,2]
[366158631,1750091450912,-278.57549684,0.00016159,2]
[366158632,1750091450922,-490.0,0.00016159,2]
[366158633,1750091450931,-490.0,0.00016159,2]
[366158634,1750091450941,-617.19940066,0.00016159,2]
[366158635,1750091450951,-490.0,0.00016159,2]
[366158636,1750091450961,-490.0,0.00016159,2]
[366158637,1750091450972,-262.8798,0.00016159,2]
[366158638,1750091450981,-490.0,0.00016159,2]
[366158639,1750091450991,-490.0,0.00016159,2]
[366158640,1750091451000,-490.0,0.00016159,2]
[366158641,1750091451010,-214.3681203,0.00016159,2]
[366158642,1750091451020,-490.3903839,0.00016159,2]
[366158643,1750091451029,-490.0,0.00016159,2]
[366158644,1750091451039,-490.5450699,0.00016159,2]
[366158645,1750091451048,-490.0,0.00016159,2]
[366158646,1750091451058,-490.0,0.00016159,2]
[366158647,1750091451067,-490.0,0.00016159,2]
[366158648,1750091451077,-490.0,0.00016159,2]
[366158649,1750091451087,-490.0,0.00016159,2]
[366158650,1750091451096,-490.0,0.00016159,2]
[366158651,1750091451106,-586.4631193,0.00016159,2]
[366158652,1750091451115,-490.0,0.00016159,2]
[366158653,1750091451125,-490.0,0.00016159,2]
[366158654,1750091451136,-490.0,0.00016159,2]
[366158655,1750091451147,-490.0,0.00016159,2]
[366158656,1750091451157,-490.0,0.00016159,2]
[366158657,1750091451168,-490.0,0.00016159,2]
[366158658,1750091451178,-490.0,0.00016159,2]
[366158659,1750091451188,-490.0,0.00016159,2]
[366158660,1750091451198,-490.0,0.00016159,2]
[366158661,1750091451208,-490.0,0.00016159,2]
[366158662,1750091451218,-838.49,0.00016159,2]
[366158663,1750091451227,-1141.55,0.00016159,2]
[366158664,1750091451237,-490.0,0.00016159,2]
[366158665,1750091451247,-1163.39,0.00016159,2]
[366158666,1750091451257,-541.6,0.00016159,2]
[366158667,1750091451266,-490.0,0.00016159,2]
[366158668,1750091451276,-490.0,0.00016159,2]
[366158669,1750091451286,-913.22,0.00016159,2]
[366158670,1750091451295,-630.79,0.00016159,2]
[366158671,1750091451305,-881.45,0.00016159,2]
[366158672,1750091451315,-500.0,0.00016159,2]
[366158673,1750091451327,-533.57,0.00016159,2]
[366158674,1750091451338,-490.0,0.00016159,2]
[366158675,1750091451348,-490.0,0.00016159,2]
[366158676,1750091451358,-490.0,0.00016159,2]
[366158677,1750091451368,-2282.246,0.00016159,2]
[366158678,1750091451378,-184.516,0.00016159,2]
[366158679,1750091451390,-151.0,0.00016159,2]
[366158680,1750091451400,-490.0,0.0001616,2]
[366158681,1750091451411,-714.96,0.0001616,2]
[366158682,1750091451422,-490.0,0.0001616,2]
[366158683,1750091451432,-490.0,0.0001616,2]
[366158684,1750091451443,-490.0,0.0001616,2]
[366158685,1750091451452,-490.0,0.0001616,2]
[366158686,1750091451463,-490.0,0.0001616,2]
[366158687,1750091451474,-490.0,0.0001616,2]
[366158688,1750091451484,-490.0,0.0001616,2]
[366158689,1750091451495,-490.0,0.0001616,2]
[366158690,1750091451505,-490.0,0.0001616,2]
[366158691,1750091451514,-490.0,0.0001616,2]
[366158692,1750091451524,-490.0,0.0001616,2]
[366158693,1750091451535,-490.0,0.0001616,2]
[366158694,1750091451547,-490.0,0.0001616,2]
[366158695,1750091451562,-490.0,0.0001616,2]
[366158696,1750091451572,-530.9762026,0.0001616,2]
[366158697,1750091451583,-490.0,0.0001616,2]
[366158698,1750091451594,-490.0,0.0001616,2]
[366158699,1750091451603,-490.0,0.0001616,2]
[366158700,1750091451614,-490.0,0.0001616,2]
[366158701,1750091451624,-500.0,0.0001616,2]
[366158702,1750091451636,-152.97,0.0001616,2]
[366158703,1750091451646,-700.0,0.00016164,2]
[366158704,1750091451656,-500.0,0.00016164,2]
[366158706,1750091451666,-200.0,0.00016164,2]
[366158707,1750091451676,-246.80271096,0.00016167,2]
[366158708,1750091451686,-9462.07433665,0.00016168,2]
[366158709,1750091451696,-2000.0,0.00016174,2]
[366158710,1750091451706,-500.0,0.00016174,2]
[366158711,1750091451716,-200.0,0.00016174,2]
[366158712,1750091451726,-461.93,0.0001618,2]
[366158713,1750091451736,-6878.41673439,0.00016197,2]
[366158714,1750091451746,-268.29468426,0.00016199,2]
[366158715,1750091451757,-150.0,0.00016207,2]
[366158716,1750091451767,-150.0,0.0001621,2]
[366158717,1750091451777,-1000.0,0.00016214,2]
[366158718,1750091451787,-636.0,0.00016215,2]
[366158719,1750091451797,-762.6,0.00016221,2]
[366158720,1750091451808,-490.0,0.00016221,2]
[366158721,1750091451818,-615.75,0.00016221,2]
[366158722,1750091451828,-993.6,0.00016221,2]
[366158723,1750091451837,-1070.2,0.00016221,2]
[366158724,1750091451847,-1050.26,0.00016221,2]
[366158725,1750091451857,-490.0,0.00016221,2]
[366158726,1750091451867,-653.99,0.00016221,2]
[366158727,1750091451876,-713.63,0.00016221,2]
[366158728,1750091451886,-610.75,0.00016221,2]
[366158729,1750091451896,-3614.15,0.00016221,2]
[366158730,1750091451906,-504.1,0.00016221,2]
[366158731,1750091451915,-1297.06,0.00016221,2]
[366158732,1750091451925,-583.72,0.00016221,2]
[366158733,1750091451934,-3953.6,0.00016221,2]
[366158734,1750091451944,-490.0,0.00016221,2]
[366158735,1750091451954,-490.0,0.00016221,2]
[366158736,1750091451963,-876.57,0.00016221,2]
[366158737,1750091451973,-2243.06,0.00016221,2]
[366158738,1750091451982,-490.0,0.00016221,2]
[366158739,1750091451991,-851.97,0.00016221,2]
[366158740,1750091452001,-523.8,0.00016221,2]
[366158741,1750091452010,-490.0,0.00016221,2]
[366158742,1750091452020,-490.0,0.00016221,2]
[366158743,1750091452030,-490.0,0.00016221,2]
[366158744,1750091452040,-490.0,0.00016221,2]
[366158745,1750091452049,-720.98,0.00016221,2]
[366158746,1750091452059,-823.62,0.00016221,2]
[366158747,1750091452069,-527.64,0.00016221,2]
[366158748,1750091452079,-490.0,0.00016221,2]
[366158749,1750091452089,-490.0,0.00016221,2]
[366158750,1750091452099,-490.0,0.00016221,2]
[366158751,1750091452108,-733.51,0.00016221,2]
[366158752,1750091452118,-923.94,0.00016221,2]
[366158753,1750091452128,-490.0,0.00016221,2]
[366158754,1750091452139,-8387.00614784,0.00016222,2]
[366158755,1750091452149,-765.95,0.00016222,2]
[366158756,1750091452159,-591.52,0.00016222,2]
[366158757,1750091452168,-1284.74,0.00016222,2]
[366158758,1750091452178,-1318.05,0.00016222,2]
[366158759,1750091452189,-770.92695,0.00016222,2]
[366158760,1750091452199,-6063.55,0.00016222,2]
[366158761,1750091452209,-490.0,0.00016222,2]
[366158762,1750091452219,-776.28,0.00016222,2]
[366158763,1750091452229,-717.94,0.00016222,2]
[366158764,1750091452238,-1035.791105,0.00016222,2]
[366158765,1750091452248,-1182.28,0.00016222,2]
[366158766,1750091452257,-1129.2,0.00016222,2]
[366158767,1750091452267,-490.0,0.00016222,2]
[366158768,1750091452276,-1010.89,0.00016222,2]
[366158769,1750091452286,-490.0,0.00016222,2]
[366158770,1750091452295,-1036.01,0.00016222,2]
[366158771,1750091452305,-724.29,0.00016222,2]
[366158772,1750091452315,-490.0,0.00016222,2]
[366158773,1750091452324,-2766.55,0.00016222,2]
[366158774,1750091452334,-1651.26,0.00016222,2]
[366158775,1750091452344,-490.0,0.00016222,2]
[366158776,1750091452354,-1222.46,0.00016222,2]
[366158777,1750091452364,-1173.4,0.00016222,2]
[366158778,1750091452374,-1931.78,0.00016222,2]
[366158779,1750091452384,-490.0,0.00016222,2]
[366158780,1750091452394,-1848.28,0.00016222,2]
[366158781,1750091452404,-531.14,0.00016222,2]
[366158782,1750091452414,-2072.92,0.00016222,2]
[366158783,1750091452424,-7308.52,0.00016222,2]
[366158784,1750091452434,-690.49,0.00016222,2]
[366158785,1750091452444,-1395.77,0.00016222,2]
[366158786,1750091452454,-1990.42,0.00016222,2]
[366158787,1750091452463,-490.0,0.00016222,2]
[366158788,1750091452473,-2034.89,0.00016222,2]
[366158789,1750091452482,-571.59,0.00016222,2]
[366158790,1750091452492,-2246.04,0.00016222,2]
[366158791,1750091452501,-774.87,0.00016222,2]
[366158792,1750091452511,-2763.23,0.00016222,2]
[366158793,1750091452520,-637.98,0.00016223,2]
[366158794,1750091452529,-490.0,0.00016223,2]
[366158795,1750091452540,-490.0,0.00016223,2]
[366158796,1750091452554,-490.0,0.00016223,2]
[366158797,1750091452564,-490.0,0.00016223,2]
[366158798,1750091452574,-490.0,0.00016223,2]
[366158799,1750091452584,-490.0,0.00016223,2]
[366158800,1750091452594,-490.0,0.00016223,2]
[366158801,1750091452603,-527.08,0.00016223,2]
[366158802,1750091452612,-250.0,0.00016223,2]
[366158803,1750091452622,-490.0,0.00016223,2]
[366158804,1750091452635,-490.0,0.00016223,2]
[366158805,1750091452645,-494.94945705,0.00016223,2]
[366158806,1750091452655,-490.0,0.00016223,2]
[366158807,1750091452664,-490.0,0.00016223,2]
[366158808,1750091452673,-490.0,0.00016223,2]
[366158809,1750091452683,-358.04824071,0.00016223,2]
[366158810,1750091452693,-519.12,0.00016223,2]
[366158811,1750091452702,-549.5,0.00016223,2]
[366158812,1750091452712,-490.0,0.00016223,2]
[366158813,1750091452723,-490.0,0.00016223,2]
[366158814,1750091452732,-490.0,0.00016223,2]
[366158815,1750091452741,-487.68045045,0.00016223,2]
[366158816,1750091452751,-490.0,0.00016223,2]
[366158817,1750091452760,-490.0,0.00016223,2]
[366158818,1750091452771,-660.61,0.00016223,2]
[366158819,1750091452780,-490.0,0.00016223,2]
[366158820,1750091452789,-490.0,0.00016223,2]
[366158821,1750091452799,-490.0,0.00016223,2]
[366158822,1750091452808,-490.0,0.00016223,2]
[366158823,1750091452818,-490.0,0.00016223,2]
[366158824,1750091452827,-490.0,0.00016223,2]
[366158825,1750091452837,-270.13,0.00016223,2]
[366158826,1750091452846,-571.12325883,0.00016223,2]
[366158827,1750091452856,-490.0,0.00016223,2]
[366158828,1750091452865,-490.0,0.00016223,2]
[366158829,1750091452874,-503.79411564,0.00016223,2]
[366158830,1750091452884,-490.0,0.00016223,2]
[366158831,1750091452894,-490.0,0.00016223,2]
[366158832,1750091452903,-536.12,0.00016223,2]
[366158833,1750091452912,-490.0,0.00016223,2]
[366158834,1750091452922,-490.0,0.00016223,2]
[366158835,1750091452932,-490.0,0.00016223,2]
[366158836,1750091452941,-490.0,0.00016223,2]
[366158837,1750091452950,-490.0,0.00016223,2]
[366158838,1750091452959,-490.0,0.00016223,2]
[366158839,1750091452969,-490.0,0.00016223,2]
[366158840,1750091452978,-490.0,0.00016223,2]
[366158841,1750091452987,-490.0,0.00016223,2]
[366158842,1750091452997,-490.0,0.00016223,2]
[366158843,1750091453006,-490.0,0.00016223,2]
[366158844,1750091453015,-490.0,0.00016223,2]
[366158845,1750091453025,-490.0,0.00016223,2]
[366158846,1750091453035,-490.0,0.00016223,2]
[366158847,1750091453045,-490.0,0.00016223,2]
[366158848,1750091453054,-490.0,0.00016223,2]
[366158849,1750091453064,-490.0,0.00016223,2]
[366158850,1750091453074,-490.0,0.00016223,2]
[366158851,1750091453083,-490.0,0.00016223,2]
[366158852,1750091453094,-892.84,0.00016223,2]
[366158853,1750091453104,-490.0,0.00016223,2]
[366158854,1750091453113,-490.0,0.00016223,2]
[366158855,1750091453122,-490.0,0.00016223,2]
[366158856,1750091453131,-533.01,0.00016223,2]
[366158857,1750091453141,-490.0,0.00016223,2]
[366158858,1750091453150,-586.13,0.00016223,2]
[366158859,1750091453159,-490.0,0.00016223,2]
[366158860,1750091453169,-490.0,0.00016223,2]
[366158861,1750091453178,-490.0,0.00016223,2]
[366158862,1750091453187,-490.0,0.00016223,2]
[366158863,1750091453197,-490.0,0.00016223,2]
[366158864,1750091453345,-490.0,0.00016223,2]
[366158865,1750091453370,-490.0,0.00016223,2]
[366158866,1750091453381,-738.88,0.00016223,2]
[366158867,1750091453391,-636.6,0.00016223,2]
[366158868,1750091453402,-397.18028924,0.00016223,2]
[366158869,1750091453412,-490.0,0.00016223,2]
[366158870,1750091453422,-406.18,0.00016223,2]
[366158871,1750091453432,-490.0,0.00016223,2]
[366158872,1750091453442,-490.0,0.00016223,2]
[366158873,1750091453452,-490.0,0.00016223,2]
[366158874,1750091453462,-490.0,0.00016223,2]
[366158875,1750091453473,-490.0,0.00016223,2]
[366158876,1750091453484,-490.0,0.00016223,2]
[366158877,1750091453494,-490.0,0.00016223,2]
[366158878,1750091453504,-490.0,0.00016223,2]
[366158879,1750091453514,-699.43,0.00016223,2]
[366158880,1750091453525,-490.0,0.00016223,2]
[366158881,1750091453536,-490.0,0.00016223,2]
[366158882,1750091453546,-494.39000597,0.00016223,2]
[366158883,1750091453559,-624.72,0.00016223,2]
[366158884,1750091453568,-490.0,0.00016223,2]
[366158885,1750091453579,-407.5726019,0.00016223,2]
[366158886,1750091453588,-490.0,0.00016223,2]
[366158887,1750091453599,-490.0,0.00016223,2]
[366158888,1750091453609,-490.0,0.00016223,2]
[366158889,1750091453619,-490.0,0.00016223,2]
[366158890,1750091453629,-490.0,0.00016223,2]
[366158891,1750091453640,-490.0,0.00016223,2]
[366158892,1750091453650,-490.0,0.00016223,2]
[366158893,1750091453660,-490.0,0.00016223,2]
[366158894,1750091453670,-747.4,0.00016223,2]
[366158895,1750091453679,-490.0,0.00016223,2]
[366158896,1750091453688,-490.0,0.00016223,2]
[366158897,1750091453698,-490.0,0.00016223,2]
[366158898,1750091453707,-490.0,0.00016223,2]
[366158899,1750091453717,-490.0,0.00016223,2]
[366158900,1750091453727,-664.08,0.00016223,2]
[366158901,1750091453737,-490.0,0.00016223,2]
[366158902,1750091453747,-480.0,0.00016223,2]
[366158903,1750091453757,-490.0,0.00016223,2]
[366158904,1750091453767,-490.0,0.00016223,2]
[366158905,1750091453776,-490.0,0.00016223,2]
[366158906,1750091453786,-490.0,0.00016223,2]
[366158907,1750091453796,-490.0,0.00016223,2]
[366158908,1750091453805,-1074.05,0.00016223,2]
[366158909,1750091453815,-610.78,0.00016223,2]
[366158910,1750091453825,-490.0,0.00016223,2]
[366158911,1750091453835,-490.0,0.00016223,2]
[366158912,1750091453845,-490.0,0.00016223,2]
[366158913,1750091453855,-490.0,0.00016223,2]
[366158914,1750091453865,-490.0,0.00016223,2]
[366158915,1750091453874,-490.0,0.00016223,2]
[366158916,1750091453885,-490.0,0.00016223,2]
[366158917,1750091453895,-490.0,0.00016223,2]
[366158918,1750091453910,-494.11415465,0.00016223,2]
[366158919,1750091453920,-490.0,0.00016223,2]
[366158920,1750091453930,-490.0,0.00016223,2]
[366158921,1750091453940,-490.0,0.00016223,2]
[366158922,1750091453950,-599.14,0.00016223,2]
[366158923,1750091453959,-490.0,0.00016223,2]
[366158924,1750091453969,-490.0,0.00016223,2]
[366158925,1750091453979,-490.0,0.00016223,2]
[366158926,1750091453988,-490.0,0.00016223,2]
[366158927,1750091454000,-490.0,0.00016223,2]
[366158928,1750091454010,-1185.55,0.00016223,2]
[366158929,1750091454019,-490.0,0.00016223,2]
[366158930,1750091454029,-377.75890651,0.00016223,2]
[366158931,1750091454039,-490.0,0.00016223,2]
[366158932,1750091454049,-490.0,0.00016223,2]
[366158933,1750091454058,-802.82,0.00016223,2]
[366158934,1750091454069,-336.61296527,0.00016223,2]
[366158935,1750091454078,-621.58,0.00016223,2]
[366158936,1750091454088,-490.0,0.00016223,2]
[366158937,1750091454097,-490.0,0.00016223,2]
[366158938,1750091454107,-490.0,0.00016223,2]
[366158939,1750091454116,-490.0,0.00016223,2]
[366158940,1750091454126,-490.0,0.00016223,2]
[366158941,1750091454140,-490.0,0.00016223,2]
[366158942,1750091454149,-490.0,0.00016223,2]
[366158943,1750091454159,-923.05,0.00016223,2]
[366158944,1750091454169,-490.0,0.00016223,2]
[366158945,1750091454179,-965.26,0.00016223,2]
[366158946,1750091454188,-490.0,0.00016223,2]
[366158947,1750091454197,-490.0,0.00016223,2]
[366158948,1750091454207,-520.93,0.00016223,2]
[366158949,1750091454216,-250.49,0.00016223,2]
[366158950,1750091454226,-775.12,0.00016223,2]
[366158951,1750091454235,-490.0,0.00016223,2]
[366158952,1750091454245,-490.0,0.00016223,2]
[366158953,1750091454256,-490.0,0.00016223,2]
[366158954,1750091454266,-519.27,0.00016223,2]
[366158955,1750091454275,-956.94,0.00016223,2]
[366158956,1750091454285,-490.0,0.00016223,2]
[366158957,1750091454295,-490.0,0.00016223,2]
[366158958,1750091454305,-818.65,0.00016223,2]
[366158959,1750091454315,-490.0,0.00016223,2]
[366158960,1750091454326,-490.0,0.00016223,2]
[366158961,1750091454336,-490.0,0.00016223,2]
[366158962,1750091454345,-1168.51,0.00016223,2]
[366158963,1750091454356,-490.0,0.00016223,2]
[366158964,1750091454366,-725.48,0.00016223,2]
[366158965,1750091454376,-490.0,0.00016223,2]
[366158966,1750091454385,-490.0,0.00016223,2]
[366158967,1750091454395,-490.0,0.00016223,2]
[366158968,1750091454405,-490.0,0.00016223,2]
[366158969,1750091454415,-629.83,0.00016223,2]
[366158970,1750091454425,-490.0,0.00016223,2]
[366158971,1750091454435,-490.74418426,0.00016223,2]
[366158972,1750091454445,-490.0,0.00016223,2]
[366158973,1750091454455,-875.92,0.00016223,2]
[366158974,1750091454465,-496.95889768,0.00016223,2]
[366158975,1750091454475,-490.0,0.00016223,2]
[366158976,1750091454484,-930.35,0.00016223,2]
[366158977,1750091454495,-490.0,0.00016223,2]
[366158978,1750091454504,-490.0,0.00016223,2]
[366158979,1750091454514,-490.0,0.00016223,2]
[366158980,1750091454524,-441.70254088,0.00016223,2]
[366158981,1750091454534,-516.46,0.00016223,2]
[366158982,1750091454545,-490.0,0.00016223,2]
[366158983,1750091454557,-490.0,0.00016223,2]
[366158984,1750091454567,-490.0,0.00016223,2]
[366158985,1750091454577,-490.0,0.00016223,2]
[366158986,1750091454587,-490.0,0.00016223,2]
[366158987,1750091454599,-526.81,0.00016223,2]
[366158988,1750091454609,-805.25,0.00016223,2]
[366158989,1750091454619,-490.0,0.00016223,2]
[366158990,1750091454629,-490.0,0.00016223,2]
[366158991,1750091454640,-1200.11,0.00016223,2]
[366158992,1750091454651,-490.0,0.00016223,2]
[366158993,1750091454661,-497.25755648,0.00016223,2]
[366158994,1750091454671,-716.16,0.00016223,2]
[366158995,1750091454680,-490.0,0.00016223,2]
[366158996,1750091454690,-490.0,0.00016223,2]
[366158997,1750091454700,-608.68,0.00016223,2]
[366158998,1750091454709,-308.16,0.00016223,2]
[366158999,1750091454719,-490.0,0.00016223,2]
[366159000,1750091454731,-490.0,0.00016223,2]
[366159001,1750091454740,-490.0,0.00016223,2]
[366159002,1750091454750,-490.0,0.00016223,2]
[366159003,1750091454760,-490.0,0.00016223,2]
[366159004,1750091454770,-490.0,0.00016223,2]
[366159005,1750091454780,-578.75,0.00016223,2]
[366159006,1750091454789,-898.14,0.00016223,2]
[366159007,1750091454799,-2537.56,0.00016223,2]
[366159008,1750091454808,-3266.78,0.00016223,2]
[366159009,1750091454818,-490.0,0.00016223,2]
[366159010,1750091454829,-2132.6,0.00016223,2]
[366159011,1750091454838,-643.74,0.00016223,2]
[366159012,1750091454848,-3012.94,0.00016223,2]
[366159013,1750091454858,-807.72,0.00016223,2]
[366159014,1750091454868,-490.0,0.00016223,2]
[366159015,1750091454878,-4543.3,0.00016223,2]
[366159016,1750091454888,-356.7813325,0.00016223,2]
[366159017,1750091454898,-490.0,0.00016223,2]
[366159018,1750091454908,-733.11,0.00016223,2]
[366159019,1750091454918,-490.0,0.00016223,2]
[366159020,1750091454927,-9785.58,0.00016223,2]
[366159021,1750091454937,-490.0,0.00016223,2]
[366159022,1750091454948,-597.72,0.00016223,2]
[366159023,1750091454959,-2149.77,0.00016223,2]
[366159024,1750091454969,-490.0,0.00016223,2]
[366159025,1750091454978,-2434.46,0.00016223,2]
[366159026,1750091454987,-1204.82,0.00016223,2]
[366159027,1750091454997,-490.0,0.00016223,2]
[366159028,1750091455008,-504.22,0.00016223,2]
[366159029,1750091455017,-941.25,0.00016223,2]
[366159030,1750091455027,-490.0,0.00016223,2]
[366159031,1750091455037,-747.21,0.00016223,2]
[366159032,1750091455047,-490.0,0.00016223,2]
[366159033,1750091455057,-1058.53,0.00016223,2]
[366159034,1750091455067,-604.28880461,0.00016223,2]
[366159035,1750091455076,-490.0,0.00016223,2]
[366159036,1750091455086,-490.0,0.00016223,2]
[366159037,1750091455095,-625.63,0.00016223,2]
[366159038,1750091455105,-5774.1,0.00016223,2]
[366159039,1750091455115,-1700.21,0.00016223,2]
[366159040,1750091455125,-498.97,0.00016223,2]
[366159041,1750091455135,-1264.57,0.00016223,2]
[366159042,1750091455145,-490.0,0.00016223,2]
[366159043,1750091455155,-2191.46,0.00016223,2]
[366159044,1750091455166,-592.12,0.00016223,2]
[366159045,1750091455177,-4388.27,0.00016223,2]
[366159046,1750091455189,-490.0,0.00016223,2]
[366159047,1750091455200,-490.0,0.00016223,2]
[366159048,1750091455210,-490.0,0.00016223,2]
[366159049,1750091455221,-1495.59,0.00016223,2]
[366159050,1750091455230,-1495.83,0.00016223,2]
[366159051,1750091455241,-490.0,0.00016223,2]
[366159052,1750091455252,-1329.56,0.00016223,2]
[366159053,1750091455263,-558.25038213,0.00016223,2]
[366159054,1750091455272,-3081.63,0.00016223,2]
[366159055,1750091455281,-756.91,0.00016223,2]
[366159056,1750091455291,-618.27,0.00016223,2]
[366159057,1750091455301,-490.0,0.00016223,2]
[366159058,1750091455311,-490.0,0.00016223,2]
[366159059,1750091455321,-1727.22,0.00016223,2]
[366159060,1750091455331,-3490.86,0.00016223,2]
[366159061,1750091455340,-202.86459023,0.00016223,2]
[366159062,1750091455351,-490.0,0.00016223,2]
[366159063,1750091455361,-490.0,0.00016223,2]
[366159064,1750091455371,-923.5,0.00016223,2]
[366159065,1750091455380,-490.0,0.00016223,2]
[366159066,1750091455391,-1444.57,0.00016223,2]
[366159067,1750091455400,-490.0,0.00016223,2]
[366159068,1750091455411,-490.0,0.00016223,2]
[366159069,1750091455421,-2688.69,0.00016223,2]